fUST/lending_fUST_20250214
["ID","MTS","AMOUNT","RATE_DAILY","PERIOD"]
[353066003,1739538648873,-500.0,0.00013945,2]
[353066004,1739538648883,-437.06978246,0.00013945,2]
[353066005,1739538648894,-500.0,0.00013945,2]
[353066006,1739538648903,-589.08,0.00013945,2]
[353066007,1739538648914,-500.0,0.00013945,2]
[353066008,1739538648924,-500.0,0.00013945,2]
[353066009,1739538648934,-500.0,0.00013945,2]
[353066010,1739538648945,-500.0,0.00013945,2]
[353066011,1739538648955,-500.0,0.00013945,2]
[353066012,1739538648965,-1679.16,0.00013945,2]
[353066013,1739538648975,-1761.97,0.00013945,2]
[353066014,1739538648986,-500.0,0.00013945,2]
[353066015,1739538648995,-500.0,0.00013945,2]
[353066016,1739538649005,-500.0,0.00013945,2]
[353066017,1739538649014,-500.0,0.00013945,2]
[353066018,1739538649022,-271.60477824,0.00013945,2]
[353066019,1739538649032,-276.95964889,0.00013945,2]
[353066020,1739538649042,-925.51,0.00013945,2]
[353066021,1739538649053,-500.0,0.00013945,2]
[353066022,1739538649063,-500.0,0.00013945,2]
[353066023,1739538649078,-500.0,0.00013945,2]
[353066024,1739538649089,-500.0,0.00013945,2]
[353066025,1739538649101,-908.89,0.00013945,2]
[353066026,1739538649112,-502.92795177,0.00013945,2]
[353066027,1739538649123,-1638.88,0.00013945,2]
[353066028,1739538649134,-500.0,0.00013945,2]
[353066029,1739538649145,-500.0,0.00013945,2]
[353066030,1739538649158,-249.58592137,0.00013945,2]
[353066031,1739538649169,-1450.6,0.00013945,2]
[353066032,1739538649179,-500.0,0.00013945,2]
[353066033,1739538649190,-500.0,0.00013945,2]
[353066034,1739538649200,-500.0,0.00013945,2]
[353066035,1739538649210,-500.0,0.00013945,2]
[353066036,1739538649220,-500.0,0.00013945,2]
[353066037,1739538649230,-500.0,0.00013945,2]
[353066038,1739538649241,-500.0,0.00013945,2]
[353066039,1739538649251,-589.12,0.00013945,2]
[353066040,1739538649262,-500.0,0.00013945,2]
[353066041,1739538649272,-522.27245316,0.00013945,2]
[353066042,1739538649282,-500.0,0.00013945,2]
[353066043,1739538649292,-255.17583996,0.00013945,2]
[353066044,1739538649301,-500.0,0.00013945,2]
[353066045,1739538649311,-1386.89,0.00013945,2]
[353066046,1739538649321,-500.0,0.00013945,2]
[353066047,1739538649332,-500.0,0.00013945,2]
[353066048,1739538649343,-691.56,0.00013945,2]
[353066049,1739538649353,-500.0,0.00013945,2]
[353066050,1739538649363,-627.12,0.00013945,2]
[353066051,1739538649374,-500.0,0.00013945,2]
[353066052,1739538649385,-500.0,0.00013945,2]
[353066053,1739538649395,-500.0,0.00013945,2]
[353066054,1739538649406,-500.0,0.00013945,2]
[353066055,1739538649418,-500.0,0.00013945,2]
[353066056,1739538649428,-214.43335683,0.00013945,2]
[353066057,1739538649439,-500.0,0.00013945,2]
[353066058,1739538649449,-1257.32,0.00013945,2]
[353066059,1739538649459,-2509.54,0.00013945,2]
[353066060,1739538649470,-500.0,0.00013945,2]
[353066061,1739538649480,-500.0,0.00013945,2]
[353066062,1739538649490,-500.0,0.00013945,2]
[353066063,1739538649501,-1910.45,0.00013945,2]
[353066064,1739538649511,-500.0,0.00013945,2]
[353066065,1739538649521,-500.0,0.00013945,2]
[353066066,1739538649532,-876.75,0.00013945,2]
[353066067,1739538649542,-1477.35,0.00013945,2]
[353066068,1739538649552,-3452.82,0.00013945,2]
[353066069,1739538649563,-5825.08,0.00013945,2]
[353066070,1739538649573,-500.0,0.00013945,2]
[353066071,1739538649583,-500.0,0.00013945,2]
[353066072,1739538649593,-500.0,0.00013945,2]
[353066073,1739538649602,-500.0,0.00013945,2]
[353066074,1739538649612,-2374.63,0.00013945,2]
[353066075,1739538649622,-20443.47,0.00013945,2]
[353066076,1739538649632,-869.47,0.00013945,2]
[353066077,1739538649641,-500.0,0.00013945,2]
[353066078,1739538649651,-45911.62234387,0.00013945,2]
[353066079,1739538649875,-3686.94765613,0.00013945,2]
[353066080,1739538649885,-1821.74,0.00013945,2]
[353066081,1739538649895,-500.0,0.00013945,2]
[353066082,1739538649904,-500.0,0.00013945,2]
[353066083,1739538649913,-2384.41,0.00013945,2]
[353066084,1739538649922,-2396.66,0.00013945,2]
[353066085,1739538649932,-500.0,0.00013945,2]
[353066086,1739538649941,-1407.28,0.00013945,2]
[353066087,1739538649950,-1448.85,0.00013945,2]
[353066088,1739538649960,-500.0,0.00013945,2]
[353066089,1739538649970,-507.71,0.00013945,2]
[353066090,1739538649979,-2726.16,0.00013945,2]
[353066091,1739538649988,-233.79193762,0.00013945,2]
[353066092,1739538650000,-266.20806238,0.00013945,2]
[353066093,1739538650009,-592.69,0.00013945,2]
[353066094,1739538650019,-500.0,0.00013945,2]
[353066095,1739538650028,-500.0,0.00013945,2]
[353066096,1739538650037,-110.05934256,0.00013945,2]
[353066097,1739538650048,-490.34065744,0.00013945,2]
[353066098,1739538650058,-500.0,0.00013945,2]
[353066099,1739538650069,-500.0,0.00013945,2]
[353066100,1739538650080,-500.0,0.00013945,2]
[353066101,1739538650092,-500.0,0.00013945,2]
[353066102,1739538650103,-500.0,0.00013945,2]
[353066103,1739538650114,-500.0,0.00013945,2]
[353066104,1739538650125,-500.0,0.00013945,2]
[353066105,1739538650135,-3911.75,0.00013945,2]
[353066106,1739538650144,-49.51709517,0.00013945,2]
[353066107,1739538650156,-616.00290483,0.00013945,2]
[353066108,1739538650166,-528.63,0.00013945,2]
[353066109,1739538650176,-500.0,0.00013945,2]
[353066110,1739538650186,-695.28,0.00013945,2]
[353066111,1739538650196,-500.0,0.00013945,2]
[353066112,1739538650206,-841.74846473,0.00013945,2]
[353066113,1739538650226,-1312.48153527,0.00013945,2]
[353066114,1739538650236,-500.0,0.00013945,2]
[353066115,1739538650246,-151.642212,0.00013945,2]
[353066116,1739538650255,-1632.03,0.00013945,2]
[353066117,1739538650264,-9191.61,0.00013945,2]
[353066118,1739538650274,-4285.15,0.00013945,2]
[353066119,1739538650283,-919.01,0.00013945,2]
[353066120,1739538650292,-1837.62,0.00013945,2]
[353066121,1739538650302,-500.0,0.00013945,2]
[353066122,1739538650311,-500.0,0.00013945,2]
[353066123,1739538650321,-570.86,0.00013945,2]
[353066124,1739538650330,-500.0,0.00013945,2]
[353066125,1739538650340,-4968.34,0.00013945,2]
[353066126,1739538650349,-800.73,0.00013945,2]
[353066127,1739538650359,-2664.4,0.00013945,2]
[353066128,1739538650368,-1247.19,0.00013945,2]
[353066129,1739538650378,-15824.87247533,0.00013945,2]
[353066130,1739538650390,-777.90752467,0.00013945,2]
[353066131,1739538650400,-631.97,0.00013945,2]
[353066132,1739538650410,-3993.12,0.00013945,2]
[353066133,1739538650420,-4262.15,0.00013945,2]
[353066134,1739538650430,-500.0,0.00013945,2]
[353066135,1739538650440,-8811.13,0.00013945,2]
[353066136,1739538650449,-185.97391002,0.00013945,2]
[353066137,1739538650460,-340.95608998,0.00013945,2]
[353066138,1739538650470,-1260.10960075,0.00013945,2]
[353066139,1739538650481,-181.09039925,0.00013945,2]
[353066140,1739538650490,-165.3284823,0.00013979,2]
[353066141,1739538650499,-165.3284823,0.00013979,2]
[353066142,1739538650509,-165.3284823,0.00013979,2]
[353066143,1739538650518,-165.3284823,0.00013979,2]
[353066144,1739538650528,-165.3284823,0.00013979,2]
[353066145,1739538650537,-4.86718925,0.00013979,2]
[353066146,1739538650549,-160.46129305,0.00013979,2]
[353066147,1739538650558,-108.27370995,0.00013979,2]
[353066148,1739538650570,-57.05477235,0.00013979,2]
[353066149,1739538650580,-165.3284823,0.00013979,2]
[353066150,1739538650589,-165.3284823,0.00013979,2]
[353066151,1739538650599,-165.3284823,0.00013979,2]
[353066152,1739538650609,-165.3284823,0.00013979,2]
[353066153,1739538650618,-165.3284823,0.00013979,2]
[353066154,1739538650628,-165.3284823,0.00013979,2]
[353066155,1739538650637,-165.3284823,0.00013979,2]
[353066156,1739538650646,-119.64585006,0.00013979,2]
[353066157,1739538650658,-45.68263224,0.00013979,2]
[353066158,1739538650667,-165.3284823,0.00013979,2]
[353066159,1739538650676,-165.3284823,0.00013979,2]
[353066160,1739538650685,-165.3284823,0.00013979,2]
[353066161,1739538650694,-165.3284823,0.00013979,2]
[353066162,1739538650704,-165.32,0.00013979,2]
[353066163,1739538650713,-2841.10729522,0.00013979,2]
[353066164,1739538650722,-151.0,0.00013998,2]
[353066165,1739538650732,-253.66747766,0.00013998,2]
[353066166,1739538650741,-73155.05410472,0.00014,4]
[353066167,1739538650774,-913.68013903,0.00014,4]
[353066168,1739538650785,-331.014997,0.00014,4]
[353066169,1739538651001,-500.0,0.00013698,2]
[353066170,1739538651011,-403.279996,0.00013698,2]
[353066171,1739538651147,-100.22793473,0.00013698,2]
[353066172,1739538651157,-500.0,0.00013698,2]
[353066173,1739538651166,-431.78221461,0.00013698,2]
[353066174,1739538651178,-68.21778539,0.00013698,2]
[353066175,1739538651187,-500.0,0.00013698,2]
[353066176,1739538651197,-500.0,0.00013698,2]
[353066177,1739538651206,-154.666516,0.000137,2]
[353066178,1739538651215,-57.01569863,0.000137,2]
[353066179,1739538652170,-158.90741067,0.000137,2]
[353066180,1739538652179,-501.82936904,0.0001378,2]
[353066181,1739538652189,-500.0,0.0001378,2]
[353066182,1739538652200,-503.02349459,0.0001378,2]
[353066183,1739538652210,-13273.32143011,0.00014,4]
[353066184,1739538861481,-4062.06073227,0.00018,120]
[353066185,1739538861691,1877.695352,0.00018,120]
[353066186,1739538868601,-3000.0,0.00014,30]
[353066187,1739538868636,-3000.0,0.0001401,30]
[353066188,1739538868665,-3000.0,0.0001402,30]
[353066189,1739538868700,-3000.0,0.0001403,30]
[353066190,1739538868854,-3000.0,0.0001404,30]
[353066191,1739538868884,-3000.0,0.0001405,30]
[353066192,1739538868913,-3000.0,0.0001406,30]
[353066193,1739538868942,-3000.0,0.0001407,30]
[353066194,1739538868973,-3000.0,0.0001408,30]
[353066195,1739538869003,-3000.0,0.0001409,30]
[353066196,1739538869032,-3000.0,0.000141,30]
[353066197,1739538869068,-3000.0,0.0001411,30]
[353066198,1739538869097,-3000.0,0.0001412,30]
[353066199,1739538869127,-5462.091693,0.0001413,30]
[353066200,1739538869236,-503.01300037,0.000155,60]
[353066201,1739538869277,-16195.19943641,0.000164,31]
[353066202,1739538869324,-11250.0,0.00017,30]
[353066203,1739538869359,-170.87,0.000171,31]
[353066204,1739538869391,-170.87,0.000171,31]
[353066205,1739538869424,-170.87,0.000171,31]
[353066206,1739538869456,-170.87,0.000171,31]
[353066207,1739538869488,-170.87,0.000171,31]
[353066208,1739538869519,-170.87,0.000171,31]
[353066209,1739538869551,-170.87,0.000171,31]
[353066210,1739538869583,-170.87,0.000171,31]
[353066211,1739538869613,-170.87,0.000171,31]
[353066212,1739538869645,-170.87,0.000171,31]
[353066213,1739538869675,-170.87,0.000171,31]
[353066214,1739538869705,-170.87,0.000171,31]
[353066215,1739538869736,-170.87,0.000171,31]
[353066216,1739538869768,-170.87,0.000171,31]
[353066217,1739538869799,-170.87,0.000171,31]
[353066218,1739538869830,-170.87,0.000171,31]
[353066219,1739538945447,1000.0,0.00016,120]
[353066225,1739539027125,152.7,0.000171,31]
[353066226,1739539027171,152.7,0.000171,31]
[353066227,1739539027349,152.7,0.000171,31]
[353066228,1739539027394,152.7,0.000171,31]
[353066229,1739539027436,152.7,0.000171,31]
[353066230,1739539027488,152.7,0.000171,31]
[353066231,1739539027535,152.7,0.000171,31]
[353066232,1739539027588,152.7,0.000171,31]
[353066233,1739539027632,152.7,0.000171,31]
[353066234,1739539027711,152.7,0.000171,31]
[353066235,1739539027767,152.7,0.000171,31]
[353066236,1739539027810,152.7,0.000171,31]
[353066237,1739539027870,152.7,0.000171,31]
[353066238,1739539027916,152.7,0.000171,31]
[353066239,1739539027968,152.7,0.000171,31]
[353066240,1739539028027,152.7,0.000171,31]
[353066241,1739539028081,152.7,0.000171,31]
[353066242,1739539237065,1200.3555036,8.843e-05,2]
[353066243,1739539237097,101.6244964,8.843e-05,2]
[353066244,1739539269251,504.45777947,0.00018,30]
[353066249,1739539637457,152.72,0.000171,31]
[353066250,1739539637512,152.72,0.000171,31]
[353066251,1739539637573,152.72,0.000171,31]
[353066252,1739539637635,152.72,0.000171,31]
[353066253,1739539637697,152.72,0.000171,31]
[353066254,1739539637757,152.72,0.000171,31]
[353066255,1739539637816,152.72,0.000171,31]
[353066256,1739539637876,152.72,0.000171,31]
[353066257,1739539637939,152.72,0.000171,31]
[353066258,1739539638000,152.72,0.000171,31]
[353066259,1739539638059,152.72,0.000171,31]
[353066260,1739539638124,152.72,0.000171,31]
[353066261,1739539638182,152.72,0.000171,31]
[353066262,1739539638237,152.72,0.000171,31]
[353066288,1739539835120,-162.582494,0.00010685,2]
[353066289,1739539835130,-1000.0,0.00013068,2]
[353066290,1739539835139,-431.89904968,0.00013353,2]
[353066291,1739539835148,-183.48359096,0.00013598,2]
[353066292,1739539835159,-781.81581327,0.00013598,2]
[353066293,1739539835168,-1420.55364761,0.0001368,2]
[353066294,1739539835178,-300.0,0.00013689,2]
[353066295,1739539835187,-18812.84383471,0.0001369,2]
[353066296,1739539835197,-160.0,0.0001369,2]
[353066297,1739539835207,-360.56095781,0.00013697,2]
[353066298,1739539835216,-500.0,0.00013697,2]
[353066299,1739539835226,-500.0,0.00013697,2]
[353066300,1739539835235,-500.0,0.00013697,2]
[353066301,1739539835244,-500.0,0.00013697,2]
[353066302,1739539835253,-500.0,0.00013697,2]
[353066303,1739539835263,-500.0,0.00013697,2]
[353066304,1739539835273,-500.0,0.00013697,2]
[353066306,1739539835282,-500.0,0.00013697,2]
[353066308,1739539835291,-500.0,0.00013697,2]
[353066309,1739539835301,-500.0,0.00013697,2]
[353066310,1739539835310,-500.0,0.00013697,2]
[353066311,1739539835319,-272.27823498,0.00013697,2]
[353066312,1739539835329,-500.0,0.00013697,2]
[353066313,1739539835338,-500.0,0.00013697,2]
[353066314,1739539835347,-500.0,0.00013697,2]
[353066315,1739539835357,-500.0,0.00013697,2]
[353066316,1739539835367,-500.0,0.00013697,2]
[353066317,1739539835377,-500.0,0.00013698,2]
[353066318,1739539835386,-500.0,0.00013698,2]
[353066319,1739539835396,-647.70188224,0.00013698,2]
[353066320,1739539835405,-500.0,0.00013698,2]
[353066321,1739539835418,-500.0,0.00013698,2]
[353066323,1739539835427,-500.0,0.00013698,2]
[353066325,1739539835437,-500.0,0.00013698,2]
[353066327,1739539835446,-164.89384226,0.00013698,2]
[353066329,1739539835456,-500.0,0.00013698,2]
[353066331,1739539835465,-275.73137706,0.00013698,2]
[353066333,1739539835474,-501.55286419,0.00013698,2]
[353066335,1739539835485,-500.0,0.00013698,2]
[353066337,1739539835495,-500.0,0.00013698,2]
[353066339,1739539835504,-500.0,0.00013698,2]
[353066340,1739539835514,-500.0,0.00013698,2]
[353066342,1739539835523,-502.66568798,0.00013698,2]
[353066345,1739539835535,-501.09509047,0.00013698,2]
[353066346,1739539835544,-500.0,0.00013698,2]
[353066348,1739539835554,-503.25313987,0.00013698,2]
[353066349,1739539835566,-500.0,0.00013698,2]
[353066350,1739539835576,-500.0,0.00013698,2]
[353066351,1739539835586,-500.0,0.00013698,2]
[353066352,1739539835595,-500.0,0.00013698,2]
[353066353,1739539835605,-500.0,0.00013698,2]
[353066354,1739539835614,-500.0,0.00013698,2]
[353066355,1739539835623,-509.56524824,0.00013698,2]
[353066356,1739539835633,-500.0,0.00013698,2]
[353066357,1739539835642,-500.0,0.00013698,2]
[353066358,1739539835652,-500.0,0.00013698,2]
[353066359,1739539835662,-966.16,0.00013698,2]
[353066360,1739539835671,-500.0,0.00013698,2]
[353066361,1739539835681,-500.0,0.00013698,2]
[353066362,1739539835690,-500.0,0.00013698,2]
[353066363,1739539835700,-500.0,0.00013698,2]
[353066364,1739539835709,-500.0,0.00013698,2]
[353066365,1739539835719,-500.0,0.00013698,2]
[353066366,1739539835728,-633.75127506,0.00013698,2]
[353066367,1739539835738,-500.0,0.00013698,2]
[353066368,1739539835747,-500.0,0.00013698,2]
[353066369,1739539835757,-609.29778675,0.00013698,2]
[353066370,1739539835766,-500.0,0.00013698,2]
[353066371,1739539835776,-508.50828585,0.00013698,2]
[353066372,1739539835785,-500.0,0.00013698,2]
[353066373,1739539835794,-500.0,0.00013698,2]
[353066374,1739539835803,-500.0,0.00013698,2]
[353066375,1739539835812,-229.8494914,0.00013698,2]
[353066376,1739539835821,-315.47875821,0.00013698,2]
[353066377,1739539835830,-500.0,0.00013698,2]
[353066378,1739539835960,-503.882769,0.00013698,2]
[353066379,1739539835970,-503.69608624,0.00013698,2]
[353066380,1739539835979,-500.0,0.00013698,2]
[353066381,1739539835989,-580.44,0.00013698,2]
[353066382,1739539835998,-503.3606704,0.00013698,2]
[353066383,1739539836007,-250.85438679,0.00013698,2]
[353066384,1739539836016,-584.11645426,0.00013698,2]
[353066385,1739539836025,-500.0,0.00013698,2]
[353066386,1739539836034,-500.0,0.00013698,2]
[353066387,1739539836043,-502.74036216,0.00013698,2]
[353066388,1739539836053,-507.29767178,0.00013698,2]
[353066389,1739539836063,-500.0,0.00013698,2]
[353066390,1739539836073,-500.0,0.00013698,2]
[353066391,1739539836083,-509.15337383,0.00013698,2]
[353066392,1739539836092,-500.0,0.00013698,2]
[353066393,1739539836101,-500.0,0.00013698,2]
[353066394,1739539836110,-500.0,0.00013698,2]
[353066395,1739539836119,-503.94911937,0.00013698,2]
[353066396,1739539836128,-502.3328953,0.00013698,2]
[353066397,1739539836137,-500.0,0.00013698,2]
[353066398,1739539836146,-507.92340326,0.00013698,2]
[353066399,1739539836155,-500.0,0.00013698,2]
[353066400,1739539836169,-502.60023355,0.00013698,2]
[353066401,1739539836178,-285.92763327,0.00013698,2]
[353066402,1739539836187,-500.0,0.00013698,2]
[353066403,1739539836196,-500.0,0.00013698,2]
[353066404,1739539836205,-500.0,0.00013698,2]
[353066405,1739539836214,-500.0,0.00013698,2]
[353066406,1739539836223,-500.0,0.00013698,2]
[353066407,1739539836233,-500.0,0.00013698,2]
[353066408,1739539836243,-501.83046628,0.00013698,2]
[353066409,1739539836252,-500.0,0.00013698,2]
[353066410,1739539836261,-506.73045002,0.00013698,2]
[353066411,1739539836270,-203.64928317,0.00013698,2]
[353066412,1739539836279,-500.0,0.00013698,2]
[353066413,1739539836289,-507.46210843,0.00013698,2]
[353066414,1739539836298,-500.0,0.00013698,2]
[353066415,1739539836308,-506.83110241,0.00013698,2]
[353066416,1739539836317,-502.18620414,0.00013698,2]
[353066417,1739539836326,-500.0,0.00013698,2]
[353066418,1739539836335,-478.16417323,0.00013698,2]
[353066419,1739539836344,-523.26795905,0.00013698,2]
[353066420,1739539836353,-500.0,0.00013698,2]
[353066421,1739539836362,-500.0,0.00013698,2]
[353066422,1739539836372,-500.0,0.00013698,2]
[353066423,1739539836382,-500.0,0.00013698,2]
[353066424,1739539836391,-500.0,0.00013698,2]
[353066425,1739539836401,-501.84911511,0.00013698,2]
[353066426,1739539836412,-500.0,0.00013698,2]
[353066427,1739539836422,-502.95996963,0.00013698,2]
[353066428,1739539836431,-500.0,0.00013698,2]
[353066429,1739539836441,-500.0,0.00013698,2]
[353066430,1739539836450,-842.42,0.00013698,2]
[353066431,1739539836459,-600.64400475,0.00013698,2]
[353066432,1739539836469,-627.30091157,0.00013698,2]
[353066433,1739539836482,-500.0,0.00013698,2]
[353066434,1739539836493,-500.0,0.00013698,2]
[353066435,1739539836503,-500.0,0.00013698,2]
[353066436,1739539836514,-216.99641848,0.00013698,2]
[353066437,1739539836524,-500.0,0.00013698,2]
[353066438,1739539836534,-500.0,0.00013698,2]
[353066439,1739539836544,-501.85947563,0.00013698,2]
[353066440,1739539836555,-500.0,0.00013698,2]
[353066441,1739539836566,-339.2364921,0.00013698,2]
[353066442,1739539836575,-500.0,0.00013698,2]
[353066443,1739539836585,-523.65978823,0.00013698,2]
[353066444,1739539836594,-167.66675015,0.00013698,2]
[353066445,1739539836604,-500.0,0.00013698,2]
[353066446,1739539836613,-500.0,0.00013698,2]
[353066447,1739539836623,-500.0,0.00013698,2]
[353066448,1739539836632,-500.0,0.00013698,2]
[353066449,1739539836641,-501.87346695,0.00013698,2]
[353066450,1739539836651,-1088.81,0.00013698,2]
[353066451,1739539836663,-500.0,0.00013698,2]
[353066452,1739539836673,-500.0,0.00013698,2]
[353066453,1739539836682,-500.0,0.00013698,2]
[353066454,1739539836692,-500.0,0.00013698,2]
[353066455,1739539836703,-500.0,0.00013698,2]
[353066456,1739539836712,-500.0,0.00013698,2]
[353066457,1739539836722,-502.97780848,0.00013698,2]
[353066458,1739539836732,-500.0,0.00013698,2]
[353066459,1739539836741,-817.56,0.00013698,2]
[353066460,1739539836751,-504.04029848,0.00013698,2]
[353066461,1739539836760,-500.0,0.00013698,2]
[353066462,1739539836769,-500.0,0.00013698,2]
[353066463,1739539836779,-505.90644954,0.00013698,2]
[353066464,1739539836788,-500.0,0.00013698,2]
[353066465,1739539836798,-500.0,0.00013698,2]
[353066466,1739539836807,-501.75137019,0.00013698,2]
[353066467,1739539836817,-506.65190305,0.00013698,2]
[353066468,1739539836827,-500.0,0.00013698,2]
[353066469,1739539836837,-500.0,0.00013698,2]
[353066470,1739539836846,-500.0,0.00013698,2]
[353066471,1739539836856,-500.0,0.00013698,2]
[353066472,1739539836865,-572.38144332,0.00013698,2]
[353066473,1739539836875,-500.0,0.00013698,2]
[353066474,1739539836884,-414.13899221,0.00013698,2]
[353066475,1739539836893,-500.0,0.00013698,2]
[353066476,1739539836903,-500.0,0.00013698,2]
[353066477,1739539836914,-501.93500696,0.00013698,2]
[353066478,1739539836924,-503.53245811,0.00013698,2]
[353066479,1739539836934,-503.5324154,0.00013698,2]
[353066480,1739539836943,-605.01,0.00013698,2]
[353066481,1739539836953,-500.0,0.00013698,2]
[353066482,1739539836963,-505.96156691,0.00013698,2]
[353066483,1739539836972,-500.0,0.00013698,2]
[353066484,1739539836982,-560.31942373,0.00013698,2]
[353066485,1739539836991,-500.0,0.00013698,2]
[353066486,1739539837001,-500.0,0.00013698,2]
[353066487,1739539837010,-502.66768258,0.00013698,2]
[353066488,1739539837019,-500.0,0.00013698,2]
[353066489,1739539837028,-500.0,0.00013698,2]
[353066490,1739539837037,-958.07,0.00013698,2]
[353066491,1739539837047,-500.0,0.00013698,2]
[353066492,1739539837057,-500.0,0.00013698,2]
[353066493,1739539837066,-501.34624512,0.00013698,2]
[353066494,1739539837075,-500.0,0.00013698,2]
[353066495,1739539837085,-500.0,0.00013698,2]
[353066496,1739539837094,-516.04141368,0.00013698,2]
[353066497,1739539837103,-500.0,0.00013698,2]
[353066498,1739539837113,-238.82492002,0.00013698,2]
[353066499,1739539837122,-500.0,0.00013698,2]
[353066500,1739539837131,-532.81869721,0.00013698,2]
[353066501,1739539837140,-500.0,0.00013698,2]
[353066502,1739539837150,-500.0,0.00013698,2]
[353066503,1739539837161,-500.0,0.00013698,2]
[353066504,1739539837170,-500.0,0.00013698,2]
[353066505,1739539837179,-500.0,0.00013698,2]
[353066506,1739539837189,-500.0,0.00013698,2]
[353066507,1739539837199,-500.0,0.00013698,2]
[353066508,1739539837209,-531.61078871,0.00013698,2]
[353066509,1739539837218,-1856.53,0.00013698,2]
[353066510,1739539837228,-1515.16,0.00013698,2]
[353066511,1739539837237,-500.0,0.00013698,2]
[353066512,1739539837247,-501.24872047,0.00013698,2]
[353066513,1739539837256,-500.0,0.00013698,2]
[353066514,1739539837266,-500.0,0.00013698,2]
[353066515,1739539837275,-585.48,0.00013698,2]
[353066516,1739539837284,-500.0,0.00013698,2]
[353066517,1739539837294,-500.75016199,0.00013698,2]
[353066518,1739539837303,-1888.61,0.00013698,2]
[353066519,1739539837312,-500.0,0.00013698,2]
[353066520,1739539837322,-500.0,0.00013698,2]
[353066521,1739539837332,-506.79070446,0.00013698,2]
[353066522,1739539837341,-500.0,0.00013698,2]
[353066523,1739539837351,-500.0,0.00013698,2]
[353066524,1739539837360,-501.00161776,0.00013698,2]
[353066525,1739539837370,-506.64571154,0.00013698,2]
[353066526,1739539837379,-500.0,0.00013698,2]
[353066527,1739539837388,-500.0,0.00013698,2]
[353066528,1739539837398,-500.0,0.00013698,2]
[353066529,1739539837408,-500.0,0.00013698,2]
[353066530,1739539837419,-500.0,0.00013698,2]
[353066531,1739539837428,-500.0,0.00013698,2]
[353066532,1739539837438,-500.0,0.00013698,2]
[353066533,1739539837447,-503.02071668,0.00013698,2]
[353066534,1739539837456,-500.0,0.00013698,2]
[353066535,1739539837466,-500.0,0.00013698,2]
[353066536,1739539837475,-500.0,0.00013698,2]
[353066537,1739539837485,-500.0,0.00013698,2]
[353066538,1739539837496,-500.0,0.00013698,2]
[353066539,1739539837505,-500.0,0.00013698,2]
[353066540,1739539837515,-500.0,0.00013698,2]
[353066541,1739539837525,-500.0,0.00013698,2]
[353066542,1739539837535,-500.0,0.00013698,2]
[353066543,1739539837544,-247.21732349,0.00013698,2]
[353066544,1739539837553,-500.0,0.00013698,2]
[353066545,1739539837563,-475.51326546,0.00013698,2]
[353066546,1739539837574,-500.0,0.00013698,2]
[353066547,1739539837583,-500.0,0.00013698,2]
[353066548,1739539837593,-502.56269052,0.00013698,2]
[353066549,1739539837602,-500.0,0.00013698,2]
[353066550,1739539837612,-487.38018915,0.00013698,2]
[353066551,1739539837621,-500.0,0.00013698,2]